Cogmind - Beta 13 @@@ ROGUE MODE // 2024.04.09 @ 19:17:56 Player: lucasboxerhead Result: Self-destructed Performance ------------- Evolutions (1) 500 Regions Visited (2) 400 Robots Destroyed (14) 70 Value Destroyed (281) 281 Prototype IDs (0) 0 Alien Tech Used (0) 0 Bonus (0) 0 TOTAL SCORE: 1251 Bonus ------- None Cogmind --------- Core Integrity 340/400 Matter 241/300 Energy 123/125 System Corruption 0% Temperature Cool (4) Movement Flying (37) Location -9/Materials Parts ------- > --- POWER (1) -------- Light Ion Engine > --- PROPULSION (3) --- Flight Unit Flight Unit > --- UTILITY (2) ------ Improved Heat Sink > --- WEAPON (3) ------- Assault Rifle Assault Rifle > --- INVENTORY (5) ---- Light Ion Engine Assault Rifle Assault Rifle Peak State ------------ > --- POWER ------------ Light Ion Engine > --- PROPULSION ------- Flight Unit Flight Unit Flight Unit > --- UTILITY ---------- Improved Heat Sink > --- WEAPON ----------- Assault Rifle Assault Rifle Assault Rifle > --- INVENTORY -------- Light Ion Engine Assault Rifle Assault Rifle [Rating: 10] Favorites ----------- Power Light Ion Engine Engine Light Ion Engine Propulsion Aluminum Leg Leg Aluminum Leg Flight Unit Flight Unit Utility Improved Heat Sink Device Improved Heat Sink Weapon Light Assault Rifle Ballistic Gun Light Assault Rifle Build | -11 -10 -9 ------- Run | Yrd Mat Mat Slots Evolved 2 | . . 2 Power . | . . . Propulsion 1 | . . 1 Utility . | . . . Weapon 1 | . . 1 Parts Attached 18 | 5 11 2 Power 3 | 1 2 . Engine 3 | 1 2 . Core . | . . . Reactor . | . . . Propulsion 7 | 2 4 1 Treads . | . . . Leg 3 | 2 1 . Wheel . | . . . Hover . | . . . Flight 4 | . 3 1 Utility 1 | . 1 . Device 1 | . 1 . Storage . | . . . Processor . | . . . Hackware . | . . . Protection . | . . . Artifact . | . . . Weapon 7 | 2 4 1 Energy Gun . | . . . Energy Cannon . | . . . Ballistic Gun 7 | 2 4 1 Ballistic Cannon . | . . . Launcher . | . . . Special Weapon . | . . . Impact Weapon . | . . . Slashing Weapon . | . . . Piercing Weapon . | . . . Special Melee Weapon . | . . . Unidentified Prototypes . | . . . Parts Lost 6 | . 4 2 Power 1 | . 1 . Propulsion 3 | . 2 1 Utility . | . . . Weapon 2 | . 1 1 Highest Loss Streak 2 | . 2 2 To Critical Strikes . | . . . Average Slot Usage (%) 79 | . 79 81 Engine 12 | . 12 11 Leg 16 | . 20 . Flight 10 | . 6 28 Device 11 | . 11 11 Ballistic Gun 28 | . 27 30 Naked Turns . | . . . Heaviest Build 10 | 5 8 10 Greatest Support 20 | 20 20 12 Greatest Overweight (x) 1 | . 1 . Average Overweight (x) . | . . . Largest Inventory Capacity 5 | 5 5 5 Average Capacity 5 | 5 5 5 Most Carried 5 | . 5 4 Average Carried 2 | . 2 3 Final Capacity 5 | 5 5 5 Final Carried 5 | . 5 3 Class Distribution -------------------- 67% | Mutant 23% | Scavenger-Mutant 9% | Scavenger-Gunner Dominant Class ---------------- Mutant | -10/Materials Scavenger-Gunner | -9/Materials Resources | -11 -10 -9 ----------- Run | Yrd Mat Mat Matter Collected 449 | 186 243 20 Remotely . | . . . Salvage Created 485 | . 485 . Parts 29 | . 29 . Haulers Intercepted . | . . . Recyclers Shooed 2 | . 2 . Parts Field Recycled . | . . . Retrieved Matter . | . . . Parts Self-Destructed . | . . . Prevented . | . . . Kills | -11 -10 -9 ------- Run | Yrd Mat Mat Combat Hostiles Destroyed 11 | . 11 . Guns 11 | . 11 . Classes Destroyed 4 | . 4 . Recycler 2 | . 2 . Watcher 1 | . 1 . Swarmer 6 | . 6 . Grunt 5 | . 5 . Best Kill Streak 6 | . 6 . Combat Bots Only 6 | . 6 . Max Kills in Single Turn 1 | . 1 . Gunslinging . | . . . Exploded . | . . . Melee . | . . . Uniques/NPCs Destroyed . | . . . Combat | -11 -10 -9 -------- Run | Yrd Mat Mat Hostile Shots Fired 116 | . 82 34 Missed 49 | . 35 14 Damage Taken 744 | . 459 285 Core 116 | . 56 60 Absorbed by Shields . | . . . Core Remaining (%) 88 | 100 77 . Volleys Fired 55 | . 47 8 Largest 3 | . 2 3 Hottest 60 | . 40 60 Shots Fired 116 | . 93 23 Gun 116 | . 93 23 Cannon . | . . . Launcher . | . . . Special . | . . . Kinetic 116 | . 93 23 Thermal . | . . . Explosive . | . . . Electromagnetic . | . . . Robot Hit Streak 8 | . 8 4 Robot Miss Streak 5 | . 5 3 Penetration Max . | . . . Secondary Targets 3 | . 3 . Max Gunslinging Chain 1 | . 1 . Shots Hit Robots 63 | . 49 14 Core Hits 31 | . 30 1 Critical Kills . | . . . Critical Parts Destroyed . | . . . Critical Strikes . | . . . Melee Attacks . | . . . Impact . | . . . Slashing . | . . . Piercing . | . . . Sneak Attacks . | . . . Combat Hostiles . | . . . Follow-up Attacks . | . . . Damage Inflicted 627 | . 454 173 Guns 624 | . 451 173 Cannons . | . . . Explosions . | . . . Melee . | . . . Ramming 3 | . 3 . Kinetic 624 | . 451 173 Thermal . | . . . Explosive . | . . . Electromagnetic . | . . . Impact . | . . . Slashing . | . . . Piercing . | . . . Highest Corruption . | . . . Average Corruption . | . . . Corruption Purged . | . . . Corruption Blocked . | . . . Overload Shots . | . . . Overflow Damage . | . . . Projectiles . | . . . Explosions . | . . . Melee . | . . . Knockbacks . | . . . Impact . | . . . Kinetic . | . . . Secondary . | . . . Self-Inflicted Damage 1 | . 1 . Shots . | . . . Rammed 1 | . 1 . Targets Rammed 2 | . 2 . Kicked 1 | . 1 . Crushed . | . . . Highest Temperature 18 | . 18 12 Average Temperature 11 | . 11 9 Received Heat Transfer 279 | . 108 171 Siege Activations . | . . . Robots Corrupted . | . . . Combat Hostiles . | . . . Parts Fried . | . . . Impact Corruptions . | . . . Robots Melted . | . . . Combat Hostiles . | . . . Parts Melted . | . . . Heat Transferred . | . . . Parts Sabotaged . | . . . Parts Stolen . | . . . Parts Stripped . | . . . Power Chain Reactions . | . . . Alert | -11 -10 -9 ------- Run | Yrd Mat Mat Peak Influence 312 | . 312 61 Initial 46 | . . 46 Average 116 | . 141 52 Maximum Alert Level 1 | . 1 . Low Security (%) 76 | 100 68 100 Level 1 23 | . 31 . Level 2 . | . . . Level 3 . | . . . Level 4 . | . . . Level 5 . | . . . High Security . | . . . Max Security . | . . . Squads Dispatched 1 | . 1 . Investigation . | . . . Extermination . | . . . Reinforcement 1 | . 1 . Assault . | . . . Garrison . | . . . Intercept . | . . . Searches Triggered . | . . . Construction Impeded . | . . . Haulers Reinforced . | . . . Active Scanning Responses . | . . . Cargo Convoy Interrupts . | . . . Stealth | -11 -10 -9 --------- Run | Yrd Mat Mat Distress Signals 1 | . 1 . Communications Jammed . | . . . Distress Signals . | . . . Times Spotted 23 | . 17 6 Peak Tracking Total 7 | . 7 2 Tactical Retreats 2 | . 2 . Traps | -11 -10 -9 ------- Run | Yrd Mat Mat Traps Triggered . | . . . Indirectly . | . . . Trap Hack Attempts . | . . . Triggered . | . . . Disarmed . | . . . Reprogrammed . | . . . Reused . | . . . Traps Extracted . | . . . Installed . | . . . Triggered . | . . . Machines | -11 -10 -9 ---------- Run | Yrd Mat Mat Machines Disabled 1 | . . 1 Max in Single Turn 1 | . . 1 Machines Repaired . | . . . Machines Dismantled . | . . . Machines Sabotaged . | . . . Overloaded Fab Kills . | . . . Hacking | -11 -10 -9 --------- Run | Yrd Mat Mat Machines Accessed . | . . . Terminals . | . . . Fabricators . | . . . Repair Stations . | . . . Recycling Units . | . . . Scanalyzers . | . . . Garrison Access . | . . . Total Hacks . | . . . Successful . | . . . Failed . | . . . Catastrophic . | . . . Database Lockouts . | . . . Manual . | . . . Terminals . | . . . Fabricators . | . . . Repair Stations . | . . . Recycling Units . | . . . Scanalyzers . | . . . Garrison Access . | . . . Terminal Hacks . | . . . Fabricator Hacks . | . . . Repair Station Hacks . | . . . Recycling Unit Hacks . | . . . Scanalyzer . | . . . Garrison Access Hacks . | . . . Unauthorized Hacks . | . . . Terminals . | . . . Fabricators . | . . . Repair Stations . | . . . Recycling Units . | . . . Scanalyzers . | . . . Garrison Access . | . . . Data Cores Recovered . | . . . Used . | . . . Hacking Detections . | . . . Full Trace Events . | . . . Feedback Events . | . . . Feedback Blocked . | . . . Robot Schematics Acquired . | . . . Robots Built . | . . . Authchips . | . . . Time . | . . . Total Robot Build Rating . | . . . Part Schematics Acquired . | . . . Parts Built . | . . . Authchips . | . . . Time . | . . . Total Part Build Rating . | . . . Parts Repaired . | . . . Time . | . . . Parts Recycled . | . . . Recycled Matter . | . . . Retrieved Matter . | . . . Retrieved Components . | . . . Parts Scanalyzed . | . . . Part Schematics Acquired . | . . . Parts Damaged . | . . . Bothacking | -11 -10 -9 ------------ Run | Yrd Mat Mat Used RIF Installer . | . . . Robots Hacked . | . . . Non-combat . | . . . Combat . | . . . Robot Hacks Applied . | . . . Relay Couplers Released . | . . . Fabnet Peak Effective % . | . . . Robots Rewired . | . . . Allies Hacked . | . . . Hacks Repelled . | . . . Allies | -11 -10 -9 -------- Run | Yrd Mat Mat Total Allies . | . . . Largest Group . | . . . Highest-Rated Group . | . . . Highest-Rated Ally . | . . . Total Orders . | . . . Ally Attacks . | . . . Total Damage . | . . . Kills . | . . . Allies Corrupted . | . . . Allies Melted . | . . . Intel | -11 -10 -9 ------- Run | Yrd Mat Mat Robot Analysis Total . | . . . Derelict Logs Recovered . | . . . Drone Launches . | . . . Drone Recoveries . | . . . Exploration | -11 -10 -9 ------------- Run | Yrd Mat Mat Turns Passed 540 | 48 416 76 Spaces Moved 507 | 38 334 135 Core 10 | 7 3 . Treads . | . . . Legs 175 | 31 144 . Wheels . | . . . Hover . | . . . Flight 322 | . 187 135 Fastest Speed 34 | 50 37 34 Average Speed 65 | 107 73 34 Slowest Speed 120 | 120 120 37 Overloaded Moves . | . . . Propulsion Burnouts . | . . . Robots Hopped 3 | . 3 . Cave-ins Triggered . | . . . Exploration Rate (%) 22 | 4 50 12 Regions Visited 2 Branch Regions . Pre-discovered Areas . | . . . Known Exits Taken . | . . . Unknown Exits Taken 2 | 1 1 . Scrap Searched . | . . . Spaces Dug . | . . . Terrain Destroyed . | . . . Melee . | . . . Projectile . | . . . AOE . | . . . Terrain Rammed . | . . . Walls Destroyed . | . . . Machines Disabled . | . . . Actions | -11 -10 -9 --------- Run | Yrd Mat Mat Total 614 | 42 426 146 Wait 21 | . 20 1 Move 499 | 37 327 135 Hop 3 | . 3 . Pick Up 7 | . 7 . Fast Attach 11 | 5 6 . Attach 2 | . . 2 Detach 1 | . 1 . Swap 5 | . 5 . Drop 8 | . 8 . Fire 55 | . 47 8 Melee . | . . . Ram 1 | . 1 . Kick 1 | . 1 . Crush . | . . . Escape Stasis . | . . . Rewire . | . . . Trap . | . . . Miscellaneous . | . . . Route ------- -11/Scrapyard -10/Materials (discovered 3 exits: [*Mat] / [*Min x2]) -9/Materials History --------- Turn | Location | Event 3 | -11/Scrapyard | Discovered new exit (range 15) 49 | -11/Scrapyard | Entered Materials 201 | -10/Materials | Discovered new exit (range 7) 268 | -10/Materials | Discovered new exit (range 15) 314 | -10/Materials | Build established: Mutant 459 | -10/Materials | Discovered new exit (range 15) 465 | -10/Materials | Entered another Materials area 465 | -9/Materials | Evolved 2 slots: Propulsion x1, Weapon x1 541 | -9/Materials | Self-destructed Last Messages --------------- 00417_ Dropped Grenade Launcher. 00418_ Dropped Particle Gun. 00419_ Acquired Assault Rifle. 00424_ K-01 Serf collects debris. 00437_ Acquired 20 matter. 00459_ EXIT=FOUND PARAMETERS=PROPULSION+1,WEAPON+1 LOCATION=UNKNOWN GOAL=ESCAPE 00485_ K-01 Serf collects debris. 00486_ Acquired 20 matter. 00489_ K-01 Serf collects debris. 00491_ Critical hit (Burn: +37). 00511_ Flight Unit destroyed. 00517_ Critical hit (Burn: +37). 00520_ Assault Rifle destroyed. 00528_ Atomic Centrifuge disabled. 00536_ Critical hit (Burn: +37). 00541_ O-16 Technician: "IFF HANDSHAKE FAILED. SECURING TERMINAL." Map ----- +----------------------------------------------------+ | ???????????????????????????????????? | | ???????????????????????????????????? | | ???????????????????????????????????? | | ???????????????????????????????????? | | ???????????????????????????????????? | | ???????????????????????????????????? | | ???????????????????????????????????? | | ???????????????????????????????????? | | ???????????????????????????????????? | | ???????????????????????????????????? | | ???????????????????????????????????? | | ???????????????????????????????????? | | ???????????????????????????????????? | | ???????????????????????????????????? | | ???????????????????????????????????? | | ???????????????????????????????????? | | ???????????????????????????????????? | | ???????????????????????????????????? | | ???????????????????????????????????? | | ?????????????##????????????????????? | | ???????###### ##???????????????????? | | ???????# #???????????????????? | | ???????#"S #???????????????????? | | ???????#""" ! #???????????????????? | | ???????# "" #??? ###???????????? | | ???????# @ # ?????????? | | ?????### agoY ?????????? | | ###### # #g ????????? | | # # """ #?? #####?????????? | | # """ # """ #?????#?????????????? | | # """ # """ #???????????????????? | | # """ # #???????????????????? | | # #+##########????????????????? | | # """ # #????????????????? | | # """ + #????????????????? | | # "" # % ######### ???????? | | # ### ??????? | | # "" / #?# ??????? | | # "T #?# ??????? | | # "" ### #####????????? | | # * # #????????????? | | ######## +????????????? | | ???????# #####????????????? | | ???????# ########????????????????? | | ???????# #???????????????????????? | | ???????# #???????????????????????? | | ???????# ########????????????????? | | ?#####?# # ! #????????????????? | | # """ # # #????????????????? | | # """ # # #????????????????? | +----------------------------------------------------+ Best States ------------- Heat Dissipation 42 Energy Generation 10 Energy Capacity 125 Matter Stores 300 Matter Capacity 300 Sight Range 16 Terrain Scan Density 10 Evasion (%) 63 Item Schematics ----------------- None Robot Schematics ------------------ None Fabricated ------------ Nothing Alien Tech Used ----------------- None Achievements -------------- None Challenges ------------ None Game ------ Seed WarpGravitonLegs Manual? 0 Play Time 00:07:23 Cumulative 10.2 hours Start 2024.04.09 @ 19:11:49 End 2024.04.09 @ 19:17:56 Sessions 1 Manual Loads 0 Difficulty Rogue Special Mode None Game No. 30 Rogue 27 Adventurer 3 Explorer 0 Win Type - Total 0 Types 0/0/0/0/0/0/0/0/0 Lore% 8 Gallery% 16 Achievement% 14 Wizard Run 0 Options --------- Layout 1 ASCII 0 Keyboard 1 Movement Numpad Keybinds 0 Fullscreen 2 Font 24/Smallcaps Map View 50x35 Zoom Use 0% Tactical HUD 1 Map Filters NONE Filters NONE Steam 1 RUN: 2ffe7ad1-7287-4300-9b3b-65b17942bac5